Cogmind - Beta 16 @@@ ROGUE MODE // 2025.11.16 @ 10:24:31 Player: Mozco Result: Destroyed by S-10 Pest with Light Assault Rifle Performance ------------- Evolutions (2) 1000 Regions Visited (3) 600 Robots Destroyed (0) 0 Value Destroyed (0) 0 Prototype IDs (2) 40 Alien Tech Used (0) 0 Bonus (470) 470 TOTAL SCORE: 2110 Bonus ------- Pacifist 470 Cogmind --------- Core Integrity 0/550 Matter 300/300 Energy 98/100 System Corruption 5% Temperature Cool (0) Movement Core (50) Location -8/Materials Parts ------- > --- POWER (1) -------- (None) > --- PROPULSION (2) --- (None) > --- UTILITY (6) ------ (None) > --- WEAPON (2) ------- (None) > --- INVENTORY (5) ---- Ion Engine Aluminum Leg Aluminum Leg Titanium Leg High-capacity Storage Unit Peak State ------------ > --- POWER ------------ (None) > --- PROPULSION ------- VTOL Module > --- UTILITY ---------- Melee Analysis Suite Target Analyzer Core Shielding > --- WEAPON ----------- (None) > --- INVENTORY -------- Ion Engine Aluminum Leg Aluminum Leg Titanium Leg High-capacity Storage Unit [Rating: 9] Favorites ----------- Power None Propulsion VTOL Module Flight Unit VTOL Module Utility Core Shielding Processor Target Analyzer Protection Core Shielding Weapon None Build | -11 -10 -9 -8 ------- Run | Yrd Mat Mat Mat Slots Evolved 4 | . . 2 2 Power . | . . . . Propulsion . | . . . . Utility 4 | . . 2 2 Weapon . | . . . . Parts Attached 5 | . 2 . 3 Power . | . . . . Engine . | . . . . Core . | . . . . Reactor . | . . . . Propulsion 1 | . . . 1 Treads . | . . . . Leg . | . . . . Wheel . | . . . . Hover . | . . . . Flight 1 | . . . 1 Utility 4 | . 2 . 2 Device . | . . . . Storage . | . . . . Processor 2 | . . . 2 Hackware . | . . . . Protection 2 | . 2 . . Artifact . | . . . . Weapon . | . . . . Energy Gun . | . . . . Energy Cannon . | . . . . Ballistic Gun . | . . . . Ballistic Cannon . | . . . . Launcher . | . . . . Special Weapon . | . . . . Impact Weapon . | . . . . Slashing Weapon . | . . . . Piercing Weapon . | . . . . Special Melee Weapon . | . . . . Unidentified Prototypes . | . . . . Parts Lost 5 | . . . 5 Power . | . . . . Propulsion 1 | . . . 1 Utility 4 | . . . 4 Weapon . | . . . . Highest Loss Streak 5 | . . . 5 To Critical Strikes . | . . . . Average Backups 4 | 3 5 5 5 Power 1 | 1 2 2 1 Propulsion 2 | 1 2 2 2 Utility . | . 1 1 1 Weapon . | . . . . Tool/Special . | . . . . Unused Backups 9 | 2 1 . 6 Power 2 | . . . 2 Propulsion 4 | 1 . . 3 Utility 2 | . 1 . 1 Weapon 1 | 1 . . . Tool/Special . | . . . . Average Slot Usage (%) 22 | . 18 22 24 Processor 4 | . . . 8 Protection 17 | . 18 22 15 Peak Build Rating 9 | . 2 2 9 Average Rating 3 | . 1 2 5 On Entrance 1 | . . 2 2 Avg Prop Armor Cover (%) . | . . . . Naked Turns 23 | . 13 . 10 Heaviest Build 2 | . 2 2 2 Greatest Support 4 | 3 3 3 4 Greatest Overweight (x) . | . . . . Average Overweight (x) . | . . . . Largest Inventory Capacity 5 | 5 5 5 5 Average Capacity 5 | 5 5 5 5 Most Carried 5 | 5 5 5 5 Average Carried 4 | 3 5 5 4 Final Capacity 5 | 5 5 5 5 Final Carried 5 | 5 5 5 5 Class Distribution -------------------- 100% | Mutant Dominant Class ---------------- Mutant | -10/Materials Mutant | -9/Materials Mutant | -8/Materials Resources | -11 -10 -9 -8 ----------- Run | Yrd Mat Mat Mat Matter Collected 217 | 200 . 17 . Remotely . | . . . . Salvage Created . | . . . . Parts . | . . . . Haulers Intercepted . | . . . . Recyclers Shooed . | . . . . Parts Field Recycled . | . . . . Retrieved Matter . | . . . . Parts Self-Destructed . | . . . . Prevented . | . . . . Parts Restored . | . . . . Kills | -11 -10 -9 -8 ------- Run | Yrd Mat Mat Mat Combat Hostiles Destroyed . | . . . . Classes Destroyed . | . . . . Best Kill Streak . | . . . . Combat Bots Only . | . . . . Max Kills in Single Turn . | . . . . Gunslinging . | . . . . Exploded . | . . . . Melee . | . . . . Uniques/NPCs Destroyed . | . . . . Combat | -11 -10 -9 -8 -------- Run | Yrd Mat Mat Mat Hostile Shots Fired 96 | . 3 12 81 Missed 36 | . 1 4 31 Hits 60 | . 2 8 50 Melee 11 | . . . 11 Projectile 49 | . 2 8 39 AOE 3 | . . . 3 Critical Strikes 5 | . . . 5 Actively Blocked 4 | . . . 4 Damage Taken 828 | . 25 113 690 Core 670 | . 19 94 557 Absorbed by Shields . | . . . . Redirected to Shielding 102 | . 4 19 79 Core Remaining (%) 89 | 100 92 76 . Volleys Fired . | . . . . Largest . | . . . . Hottest . | . . . . Shots Fired . | . . . . Gun . | . . . . Cannon . | . . . . Launcher . | . . . . Special . | . . . . Kinetic . | . . . . Thermal . | . . . . Explosive . | . . . . Electromagnetic . | . . . . Robot Hit Streak . | . . . . Robot Miss Streak . | . . . . Penetration Max . | . . . . Secondary Targets . | . . . . Shots Hit Robots . | . . . . Core Hits . | . . . . Critical Kills . | . . . . Critical Parts Destroyed . | . . . . Critical Strikes . | . . . . Melee Attacks . | . . . . Impact . | . . . . Slashing . | . . . . Piercing . | . . . . Sneak Attacks . | . . . . Combat Hostiles . | . . . . Follow-up Attacks . | . . . . Damage Inflicted 12 | . 5 . 7 Guns . | . . . . Cannons . | . . . . Explosions . | . . . . Melee . | . . . . Ramming 12 | . 5 . 7 Kinetic . | . . . . Thermal . | . . . . Explosive . | . . . . Electromagnetic . | . . . . Impact . | . . . . Slashing . | . . . . Piercing . | . . . . Highest Corruption 5 | . . . 5 Average Corruption 5 | . . . 5 Corruption Purged . | . . . . Corruption Blocked . | . . . . Overload Shots . | . . . . Overflow Damage . | . . . . Projectiles . | . . . . Explosions . | . . . . Melee . | . . . . Knockbacks . | . . . . Impact . | . . . . Kinetic . | . . . . Secondary . | . . . . Self-Inflicted Damage 5 | . 2 . 3 Shots . | . . . . Rammed 3 | . 1 . 2 Targets Rammed 3 | . 1 . 2 Kicked . | . . . . Crushed . | . . . . Highest Temperature . | . . . . Average Temperature . | . . . . Received Heat Transfer 117 | . 12 24 81 Siege Activations . | . . . . Martial Activations . | . . . . Shielding Activations . | . . . . Robots Disrupted . | . . . . Combat Hostiles . | . . . . Robots Corrupted . | . . . . Combat Hostiles . | . . . . Parts Fried . | . . . . Impact Corruptions . | . . . . Robots Melted . | . . . . Combat Hostiles . | . . . . Parts Melted . | . . . . Heat Transferred . | . . . . Parts Sabotaged . | . . . . Parts Stolen . | . . . . Parts Stripped . | . . . . Power Chain Reactions . | . . . . Alert | -11 -10 -9 -8 ------- Run | Yrd Mat Mat Mat Maximum Alert Level . | . . . . Low Security (%) 100 | 100 100 100 100 Level 1 . | . . . . Level 2 . | . . . . Level 3 . | . . . . Level 4 . | . . . . Level 5 . | . . . . High Security . | . . . . Max Security . | . . . . Peak Influence 35 | . 35 5 6 Initial 5 | . . 5 . Average 3 | . 14 1 . Influence Increases 56 | . 35 . 21 Successful Hack 11 | . 5 . 6 Select Force Hacks 30 | . 30 . . Lose Combat Pursuer 15 | . . . 15 Influence Decreases 51 | . 20 15 16 Entered New Map 10 | . . 10 . Time Decay 41 | . 20 5 16 Squads Dispatched 4 | . 1 1 2 Investigation 2 | . 1 . 1 Extermination . | . . . . Reinforcement 2 | . . 1 1 Assault . | . . . . Garrison . | . . . . Intercept . | . . . . Searches Triggered . | . . . . Construction Impeded . | . . . . Haulers Reinforced . | . . . . Active Scanning Responses . | . . . . Cargo Convoy Interrupts . | . . . . Stealth | -11 -10 -9 -8 --------- Run | Yrd Mat Mat Mat Distress Signals 3 | . . 1 2 Communications Jammed . | . . . . Distress Signals . | . . . . Times Spotted 26 | . 3 5 18 Peak Tracking Total 18 | . 3 5 18 Tactical Retreats 1 | . . . 1 Traps | -11 -10 -9 -8 ------- Run | Yrd Mat Mat Mat Traps Triggered . | . . . . Indirectly . | . . . . Trap Hack Attempts . | . . . . Triggered . | . . . . Disarmed . | . . . . Reprogrammed . | . . . . Reused . | . . . . Traps Extracted . | . . . . Installed . | . . . . Triggered . | . . . . Machines | -11 -10 -9 -8 ---------- Run | Yrd Mat Mat Mat Machines Disabled . | . . . . Max in Single Turn . | . . . . Machines Repaired . | . . . . Machines Dismantled . | . . . . Machines Sabotaged . | . . . . Overloaded Fab Kills . | . . . . Hacking | -11 -10 -9 -8 --------- Run | Yrd Mat Mat Mat Machines Accessed 8 | . 2 2 4 Terminals 5 | . 1 1 3 Fabricators . | . . . . Repair Stations . | . . . . Recycling Units 1 | . 1 . . Scanalyzers 2 | . . 1 1 Garrison Access . | . . . . Total Hacks 26 | . 4 7 15 Successful 18 | . 4 6 8 Failed 8 | . . 1 7 Catastrophic 1 | . . 1 . Database Lockouts . | . . . . Manual 11 | . 3 1 7 Terminals 16 | . 3 1 12 Fabricators . | . . . . Repair Stations . | . . . . Recycling Units 1 | . 1 . . Scanalyzers 9 | . . 6 3 Garrison Access . | . . . . Terminal Hacks 4 | . 1 . 3 Prototype ID Bank 1 | . . . 1 Terminal Index 1 | . 1 . . Repair Station Index 1 | . . . 1 Hauler Manifests 1 | . . . 1 Fabricator Hacks . | . . . . Repair Station Hacks . | . . . . Recycling Unit Hacks . | . . . . Scanalyzer 7 | . . 6 1 Insert Component 4 | . . 3 1 Analyze 3 | . . 3 . Garrison Access Hacks . | . . . . Unauthorized Hacks 7 | . 3 . 4 Terminals 6 | . 2 . 4 Track 1 | . . . 1 Botnet 3 | . 1 . 2 Operators 2 | . 1 . 1 Fabricators . | . . . . Repair Stations . | . . . . Recycling Units 1 | . 1 . . Tunnel 1 | . 1 . . Scanalyzers . | . . . . Garrison Access . | . . . . Data Cores Recovered . | . . . . Used . | . . . . Hacking Detections 7 | . 1 2 4 Full Trace Events 1 | . . . 1 Feedback Events . | . . . . Feedback Blocked . | . . . . Robot Schematics Acquired . | . . . . Robots Built . | . . . . Authchips . | . . . . Time . | . . . . Total Robot Build Rating . | . . . . Part Schematics Acquired 3 | . . 3 . Parts Built . | . . . . Authchips . | . . . . Time . | . . . . Total Part Build Rating . | . . . . Part Studies Acquired . | . . . . Parts Repaired . | . . . . Time . | . . . . Parts Recycled . | . . . . Recycled Matter . | . . . . Retrieved Matter . | . . . . Retrieved Components . | . . . . Parts Scanalyzed 4 | . . 3 1 Part Schematics Acquired 3 | . . 3 . Parts Damaged . | . . . . Bothacking | -11 -10 -9 -8 ------------ Run | Yrd Mat Mat Mat Used RIF Installer . | . . . . Robots Hacked . | . . . . Non-combat . | . . . . Combat . | . . . . Robot Hacks Applied . | . . . . Relay Couplers Released . | . . . . Fabnet Peak Effective % . | . . . . Robots Rewired . | . . . . Allies Hacked . | . . . . Hacks Repelled . | . . . . Allies | -11 -10 -9 -8 -------- Run | Yrd Mat Mat Mat Total Allies . | . . . . Largest Group . | . . . . Highest-Rated Group . | . . . . Highest-Rated Ally . | . . . . Total Orders . | . . . . Ally Attacks . | . . . . Total Damage . | . . . . Kills . | . . . . Allies Corrupted . | . . . . Allies Melted . | . . . . Intel | -11 -10 -9 -8 ------- Run | Yrd Mat Mat Mat Active Infowar (turns) . | . . . . Robot Analysis Total . | . . . . Derelict Logs Recovered . | . . . . Drone Launches . | . . . . Drone Recoveries . | . . . . Exploration | -11 -10 -9 -8 ------------- Run | Yrd Mat Mat Mat Turns Passed 308 | 26 74 65 143 Spaces Moved 580 | 35 138 130 277 Core 558 | 35 138 130 255 Treads . | . . . . Legs . | . . . . Wheels . | . . . . Hover . | . . . . Flight 22 | . . . 22 Fastest Speed 35 | 50 50 50 35 Average Speed 49 | 50 50 50 48 Slowest Speed 50 | 50 50 50 50 Overloaded Moves . | . . . . Propulsion Burnouts . | . . . . Robots Hopped 1 | . . . 1 Potential Cave-ins . | . . . . Cave-ins Triggered . | . . . . Exploration Rate (%) 23 | 3 27 27 36 Regions Visited 3 Branch Regions . Pre-discovered Areas 1 | . 1 . . Known Exits Taken . | . . . . Unknown Exits Taken 3 | 1 1 1 . Scrap Searched . | . . . . Spaces Dug . | . . . . Terrain Destroyed . | . . . . Melee . | . . . . Projectile . | . . . . AOE . | . . . . Terrain Rammed . | . . . . Walls Destroyed . | . . . . Machines Disabled . | . . . . Actions | -11 -10 -9 -8 --------- Run | Yrd Mat Mat Mat Total 597 | 43 142 129 283 Wait . | . . . . Move 575 | 34 137 129 275 Hop 1 | . . . 1 Pick Up 9 | 7 1 . 1 Fast Attach 5 | . 2 . 3 Attach . | . . . . Detach . | . . . . Swap . | . . . . Drop 4 | 2 1 . 1 Fire . | . . . . Melee . | . . . . Ram 3 | . 1 . 2 Kick . | . . . . Crush . | . . . . Escape Stasis . | . . . . Rewire . | . . . . Trap . | . . . . Miscellaneous . | . . . . Route ------- -11/Scrapyard -10/Materials -9/Materials -8/Materials History --------- Turn | Location | Event 10 | -11/Scrapyard | Discovered new exit (range 15) 27 | -11/Scrapyard | Entered Materials 95 | -10/Materials | Discovered new exit (range 10) 101 | -10/Materials | Entered another Materials area 101 | -9/Materials | Evolved 2 slots: Utility x2 159 | -9/Materials | Discovered new exit (range 10) 166 | -9/Materials | Entered another Materials area 166 | -8/Materials | Evolved 2 slots: Utility x2 284 | -8/Materials | Core integrity fell below 50% 301 | -8/Materials | Core integrity fell below 20% 308 | -8/Materials | Build established: Mutant 309 | -8/Materials | Destroyed by S-10 Pest with Light Assault Rifle Last Messages --------------- 00296_ VTOL Module destroyed. 00298_ Core Shielding destroyed. 00298_ Knocked back. 00299_ Melee Analysis Suite destroyed. 00299_ Knocked back. 00299_ Target Analyzer destroyed. 00299_ System corrupted by crushing effect (+5). 00299_ Knocked back. 00299_ U-05 Engineer lays Concrete. 00300_ K-01 Serf collects debris. 00301_ U-05 Engineer lays Concrete. 00302_ C-30 ARC bursts open, deploying its payload. 00302_ G-47 Trooper unfolds itself. 00303_ C-30 ARC bursts open, deploying its payload. 00303_ H-55 Commando unfolds itself. 00303_ K-01 Serf collects debris. 00303_ U-05 Engineer lays Concrete. 00306_ Slug penetrates K-01 Serf. 00307_ K-01 Serf collects debris. 00309_ W-25 Informer sends out distress signal. Map ----- +----------------------------------------------------+ | ????????????????????# ""??????? #????????+ # | | ????????????????]]??# %" ??????# #????????# # | | ???????????????? ?? ?????## ?????????# # | | ???????????????? ####/###### ########### # | | ???????????????? # | | ?????????o?????? # | | ???????????????? | | ????????????????????### ###+########### | | ??????????????????????# #?????????????? | | ??????????????????????# #?????????????? | | ??????????????????????# #?????????????? | | ??????????????????????# #?????????????? | | ??????????????????????# s #?????????????? | | ??????????????????????# #?????????????? | | ??????????????????????# Y# #????????????? | | ??????????????????????# # #????????????? | | ??????????????????????# # #????????????? | | ??????????????????????# # #????????????? | | ??????????????????????# # #????????????? | | ??????????????????????# ########???????????? | | ??????????????????????# cc# #???????????? | | ??????????????????????# k c/ """ #???????????? | | ??????????????????????# h # "G" +???????????? | | ?????????????#+##+##### #??" " #???????????? | | ?????????? #???? #???????????? | | ?????????? w @ #??????#???????????? | | ?????????????#########+########??????????????????? | | ?????????????????????????????????????????????????? | | ?????????????????????????????????????????????????? | | ?????????????????????????????????????????????????? | | ?????????????????????????????????????????????????? | | ?????????????????????????????????????????????????? | | ?????????????????????????????????????????????????? | | ?????????????????????????????????????????????????? | | ?????????????????????????????????????????????????? | | ?????????????????????????????????????????????????? | | ?????????????????????????????????????????????????? | | ?????????????????????????????????????????????????? | | ?????????????????????????????????????????????????? | | ?????????????????????????????????????????????????? | | ?????????????????????????????????????????????????? | | ?????????????????????????????????????????????????? | | ?????????????????????????????????????????????????? | | ?????????????????????????????????????????????????? | | ?????????????????????????????????????????????????? | | ?????????????????????????????????????????????????? | | ?????????????????????????????????????????????????? | | ?????????????????????????????????????????????????? | | ?????????????????????????????????????????????????? | | ?????????????????????????????????????????????????? | +----------------------------------------------------+ Best States ------------- Heat Dissipation 31 Energy Generation 5 Energy Capacity 100 Matter Stores 300 Matter Capacity 300 Sight Range 16 Terrain Scan Density 10 Core Shielding 20 Evasion (%) 63 Melee Accuracy 5 Target Analysis 5 Item Schematics ----------------- Aluminum Leg | -9/Materials | Scanalyzed Hcp. Storage Unit | -9/Materials | Scanalyzed Ion Engine | -9/Materials | Scanalyzed Robot Schematics ------------------ None Fabricated ------------ Nothing Repaired ---------- Nothing Studied --------- None Alien Tech Used ----------------- None Achievements -------------- None Challenges ------------ None Game ------ Seed LaunchFireBoregun Manual? 0 Play Time 00:07:35 Cumulative 274.2 hours Start 2025.11.16 @ 10:18:52 End 2025.11.16 @ 10:24:31 Sessions 1 Manual Loads 0 Difficulty Rogue Special Mode None Game No. 286 Rogue 282 Adventurer 3 Explorer 1 Win Type - Total 1 Types 1/0/0/0/0/0/0/0/0/0 Lore% 78 Gallery% 76 Achievement% 60 Wizard Run 0 Options --------- Layout 0 ASCII 0 Keyboard 0 Movement Numpad Keybinds 0 Fullscreen 2 Font 18/SmallcapsGlow Map View 76x50 Zoom Use 0% Tactical HUD 1 Map Filters NONE Filters NONE Steam 1 RUN: 35771828-d21f-4d79-bb2b-ee9aed74fb1f